[Event "RUDAR 2 IM 2022"]
[Site "Pozarevac"]
[Date "2022.04.05"]
[Round "4.4"]
[White "Savitha Shri B"]
[Black "Milanovic, Slavisa"]
[Result "1-0"]
[ECO "C02"]
[WhiteElo "2257"]
[BlackElo "2296"]
[Annotator "NA RC"]
[PlyCount "65"]
[EventDate "2022.03.27"]
[EventType "tourn"]
[EventCountry "SRB"]
[SourceTitle "playchess.com"]
[Source "ChessBase"]
[SourceQuality "1"]
[TimeControl "40/5400+30:900+30"]

1. e4 {[%emt 0:01:51]} e6 {[%emt 0:00:07]} 2. d4 {[%emt 0:00:13]} d5 {[%emt 0:00:06]} 3. e5 {[%emt 0:00:04]} c5 {[%emt 0:00:32]} 4. c3 {[%emt 0:00:31]} Qb6 {[%emt 0:03:00]} 5. Nf3 {[%emt 0:01:32]} Nc6 {[%emt 0:01:28]} 6. a3 {[%emt 0:01:00]} c4 {[%emt 0:04:01]} 7. Nbd2 {[%emt 0:00:47]} f6 {[%emt 0:00:35]} 8. Be2 {[%emt 0:01:04]} fxe5 {[%emt 0:00:11]} 9. Nxe5 {[%emt 0:00:16]} Nxe5 {[%emt 0:00:06]} 10. dxe5 {[%emt 0:00:08]} Bc5 {[%emt 0:03:53]} 11. O-O {[%emt 0:00:16]} Ne7 {[%emt 0:00:03]} 12. Bh5+ {[%emt 0:00:08]} g6 {[%emt 0:00:07]} 13. Bg4 {[%emt 0:00:05]} h5 {[%emt 0:08:41]} 14. Bf3 {[%emt 0:02:15]} Nc6 {[%emt 0:04:44]} 15. b4 {[%emt 0:08:39]} Bf8 {[%emt 0:06:35]} 16. Re1 {[%emt 0:10:13]} Bg7 {[%emt 0:08:42]} 17. Nf1 {[%emt 0:11:57]} Nxe5 {[%emt 0:05:57]} 18. Bxd5 {[%emt 0:20:06]} Nd3 {[%emt 0:08:58]} 19. Be3 {[%emt 0:02:43]} Qd8 {[%emt 0:18:42]} 20. Be4 {[%emt 0:05:12]} Bxc3 {[%emt 0:04:54]} 21. Bxg6+ {[%emt 0:00:52]} Kf8 {[%emt 0:00:51]} 22. Rc1 {[%emt 0:09:43]} Bf6 {[%emt 0:15:17]} 23. Bxd3 {[%emt 0:01:20]} Qxd3 {[%emt 0:02:45]} 24. Qf3 {[%emt 0:00:08]} Kg7 {[%emt 0:00:33]} 25. Red1 {[%emt 0:04:05]} Qf5 {[%emt 0:00:11]} 26. Qg3+ {[%emt 0:00:58]} Qg4 {[%emt 0:01:22]} 27. Qc7+ {[%emt 0:00:20]} Kg8 {[%emt 0:00:26]} 28. h3 {[%emt 0:02:06]} Qg6 {[%emt 0:00:40]} 29. Rxc4 {[%emt 0:00:44]} Rh7 {[%emt 0:00:53]} 30. Rd8+ {[%emt 0:01:18]} Bxd8 {[%emt 0:00:07]} 31. Qxd8+ {[%emt 0:00:01]} Kf7 {[%emt 0:00:52]} 32. Rc7+ {[%emt 0:00:07]} Bd7 {[%emt 0:00:09]} 33. Rxd7# {[%emt 0:00:06]} 1-0

[Event "RUDAR 2 IM 2022"]
[Site "Pozarevac"]
[Date "2022.04.05"]
[Round "4.5"]
[White "Rajkovic, Aleksandar"]
[Black "Andreev, Konstantin"]
[Result "1/2-1/2"]
[ECO "B33"]
[WhiteElo "2181"]
[BlackElo "2238"]
[Annotator "NA RC"]
[PlyCount "72"]
[EventDate "2022.03.27"]
[EventType "tourn"]
[EventCountry "SRB"]
[SourceTitle "playchess.com"]
[Source "ChessBase"]
[SourceQuality "1"]
[TimeControl "40/5400+30:900+30"]

1. e4 {[%emt 0:04:10]} c5 {[%emt 0:00:07]} 2. Nf3 {[%emt 0:00:04]} Nc6 {[%emt 0:00:05]} 3. d4 {[%emt 0:00:08]} cxd4 {[%emt 0:00:06]} 4. Nxd4 {[%emt 0:00:03]} Nf6 {[%emt 0:00:06]} 5. Nc3 {[%emt 0:00:08]} e5 {[%emt 0:00:10]} 6. Ndb5 {[%emt 0:00:02]} d6 {[%emt 0:00:08]} 7. Bg5 {[%emt 0:00:33]} a6 {[%emt 0:00:07]} 8. Na3 {[%emt 0:00:06]} b5 {[%emt 0:00:06]} 9. Nd5 {[%emt 0:00:21]} Be7 {[%emt 0:00:08]} 10. Bxf6 {[%emt 0:01:10]} Bxf6 {[%emt 0:00:05]} 11. c3 {[%emt 0:00:19]} Bg5 {[%emt 0:00:11]} 12. Nc2 {[%emt 0:00:20]} Rb8 {[%emt 0:00:17]} 13. Bd3 {[%emt 0:03:27]} O-O {[%emt 0:00:48]} 14. O-O {[%emt 0:00:13]} Be6 {[%emt 0:02:27]} 15. Nce3 {[%emt 0:02:55]} Ne7 {[%emt 0:00:54]} 16. Bc2 {[%emt 0:04:54]} g6 {[%emt 0:13:52]} 17. Kh1 {[%emt 0:05:24]} Rc8 {[%emt 0:26:49]} 18. Bb3 {[%emt 0:06:39]} Nc6 {[%emt 0:06:00]} 19. a4 {[%emt 0:05:59]} Na5 {[%emt 0:10:49]} 20. axb5 {[%emt 0:03:30]} axb5 {[%emt 0:00:31]} 21. Ba2 {[%emt 0:04:00]} Bh6 {[%emt 0:07:54]} 22. Qd3 {[%emt 0:05:28]} Kh8 {[%emt 0:02:15]} 23. b4 {[%emt 0:03:17]} Nc4 {[%emt 0:01:12]} 24. Bxc4 {[%emt 0:01:27]} bxc4 {[%emt 0:00:07]} 25. Nxc4 {[%emt 0:02:40]} f5 {[%emt 0:00:22]} 26. Ra6 {[%emt 0:11:45]} fxe4 {[%emt 0:06:52]} 27. Qxe4 {[%emt 0:01:04]} Rf4 {[%emt 0:03:53]} 28. Nxf4 {[%emt 0:04:24]} Bxc4 {[%emt 0:00:08]} 29. Nxg6+ {[%emt 0:02:30]} hxg6 {[%emt 0:00:06]} 30. Ra7 {[%emt 0:00:44]} Bxf1 {[%emt 0:09:41]} 31. Qxg6 {[%emt 0:00:08]} Rc7 {[%emt 0:00:03]} 32. Qxh6+ {[%emt 0:00:27]} Kg8 {[%emt 0:00:11]} 33. Qg6+ {[%emt 0:00:35]} Kf8 {[%emt 0:00:06]} 34. Qh6+ {[%emt 0:01:52]} Kg8 {[%emt 0:00:07]} 35. Qg6+ {[%emt 0:02:18]} Kf8 {[%emt 0:00:04]} 36. Qf5+ {[%emt 0:01:02]} Kg8 {[%emt 0:01:09]} 1/2-1/2

[Event "RUDAR 2 IM 2022"]
[Site "Pozarevac"]
[Date "2022.04.06"]
[Round "5.1"]
[White "Milanovic, Slavisa"]
[Black "Acor, Corey"]
[Result "1-0"]
[ECO "A27"]
[WhiteElo "2296"]
[BlackElo "2326"]
[Annotator "TA"]
[PlyCount "101"]
[EventDate "2022.03.27"]
[EventType "tourn"]
[EventCountry "SRB"]
[SourceTitle "playchess.com"]
[Source "ChessBase"]
[SourceQuality "1"]
[TimeControl "40/5400+30:900+30"]

{[%evp 50,101,164,112,95,97,111,108,98,93,95,75,83,81,87,12,27,16,20,27,89,88,121,130,81,81,124,118,133,115,120,121,123,110,104,72,72,72,74,72,72,73,73,73,124,73,83,81,83,83,2092,2122,2095,1716]} 1. c4 {[%emt 0:00:08]} e5 {[%emt 0:01:00]} 2. Nc3 {[%emt 0:00:14]} Nc6 {[%emt 0:00:23]} 3. Nf3 {[%emt 0:02:05]} f5 {[%emt 0:07:55]} 4. d4 {[%emt 0:00:16]} e4 {[%emt 0:03:19]} 5. Ng5 {[%emt 0:00:05]} Be7 {[%emt 0:11:27]} 6. Nh3 {[%emt 0:01:22]} Nf6 {[%emt 0:03:59]} 7. e3 {[%emt 0:01:27]} O-O {[%emt 0:06:41]} 8. Nf4 {[%emt 0:00:08]} g5 {[%emt 0:06:36]} 9. Nfd5 {[%emt 0:01:35]} Nxd5 {[%emt 0:03:24]} 10. cxd5 {[%emt 0:01:53]} Nb8 {[%emt 0:02:25]} 11. g4 {[%emt 0:01:37]} Bb4 {[%emt 0:09:33]} 12. gxf5 {[%emt 0:04:45]} Qf6 {[%emt 0:09:28]} 13. Qg4 {[%emt 0:04:11]} Qxf5 {[%emt 0:04:49]} 14. Qxf5 {[%emt 0:00:28]} Rxf5 {[%emt 0:00:02]} 15. Bd2 {[%emt 0:01:54]} Bxc3 {[%emt 0:08:07]} 16. bxc3 {[%emt 0:00:13]} d6 {[%emt 0:05:22]} 17. Bh3 {[%emt 0:05:31]} Rf8 {[%emt 0:00:02]} 18. Bxc8 {[%emt 0:00:14]} Rxc8 {[%emt 0:00:02]} 19. Rg1 {[%emt 0:00:07]} h6 {[%emt 0:01:22]} 20. h4 {[%emt 0:02:06]} Kf7 {[%emt 0:03:43]} 21. Rb1 {[%emt 0:08:41]} b6 {[%emt 0:01:19]} 22. Rg4 {[%emt 0:06:02]} Re8 {[%emt 0:01:10]} 23. hxg5 {[%emt 0:00:23]} h5 {[%emt 0:00:36]} 24. g6+ {[%emt 0:06:41]} Kg7 {[%emt 0:00:09]} 25. Rf4 {[%emt 0:00:05]} Kxg6 {[%emt 0:00:07]} 26. Ke2 {[%emt 0:00:08]} (26. f3 $1 $18) 26... Nd7 $16 {[%emt 0:00:05]} 27. Rg1+ {[%emt 0:00:06]} Kh6 {[%emt 0:00:02]} 28. Rf7 {[%emt 0:00:29]} Rg8 {[%emt 0:03:55]} 29. Rh1 {[%emt 0:01:30]} ({Reject} 29. Rxg8 $6 Rxg8 30. Rxd7 h4 $11) 29... Rad8 {[%emt 0:02:17]} 30. Rh4 {[%emt 0:05:09]} Kg6 {[%emt 0:02:06]} 31. Re7 {[%emt 0:00:12]} Nf6 {[%emt 0:01:40] [#]} 32. Rxc7 {[%emt 0:01:12]} (32. c4 $1 $16) 32... Kg5 {[%emt 0:01:15]} 33. Rh1 {[%emt 0:00:24]} Nxd5 {[%emt 0:00:26]} 34. Rxa7 {[%emt 0:00:48]} Ra8 {[%emt 0:00:58]} (34... Nf6 $1 $11) 35. Rd7 $16 {[%emt 0:01:50]} Rgd8 {[%emt 0:00:32]} 36. Rxd8 {[%emt 0:06:45]} Rxd8 {[%emt 0:00:01]} 37. f3 {[%emt 0:00:12]} exf3+ {[%emt 0:01:52]} 38. Kxf3 {[%emt 0:00:05]} Rf8+ {[%emt 0:00:12]} 39. Ke2 {[%emt 0:02:46]} Nf6 {[%emt 0:00:47]} 40. e4+ {[%emt 0:00:00]} Kg6 {[%emt 0:01:22]} 41. Kd3 {[%emt 0:52:13]} Re8 {[%emt 0:15:30]} 42. Re1 {[%emt 0:00:30]} b5 {[%emt 0:00:30]} 43. Bf4 {[%emt 0:00:00]} d5 {[%emt 0:00:00]} 44. Rg1+ {[%emt 0:00:00]} Kf7 {[%emt 0:00:00] [#]} 45. exd5 $1 {[%emt 0:00:00]} Nxd5 {[%emt 0:00:00]} 46. Bd2 {[%emt 0:00:00]} Rh8 {[%emt 0:00:00]} ({Better is} 46... h4) 47. c4 {[%emt 0:00:00]} (47. Rg5 $142 Nf6 48. Bf4 (48. Rxb5 h4 $16)) 47... bxc4+ $16 {[%emt 0:00:00]} 48. Kxc4 {[%emt 0:00:00]} Ke6 {[%emt 0:00:00]} 49. Rg6+ {[%emt 0:00:00]} Nf6 $2 {[%emt 0:02:16][%mdl 8192]} (49... Kf7 $16 50. Ra6 Ne7) 50. d5+ $1 $18 {[%emt 0:00:00]} Ke7 {[%emt 0:01:13]} 51. Rxf6 {[%emt 0:00:00]} 1-0

[Event "RUDAR 2 IM 2022"]
[Site "Pozarevac"]
[Date "2022.04.06"]
[Round "5.2"]
[White "Velikic, Adela"]
[Black "Savitha Shri B"]
[Result "1-0"]
[ECO "B42"]
[WhiteElo "2258"]
[BlackElo "2257"]
[Annotator "TA"]
[PlyCount "65"]
[EventDate "2022.03.27"]
[EventType "tourn"]
[EventCountry "SRB"]
[SourceTitle "playchess.com"]
[Source "ChessBase"]
[SourceQuality "1"]
[TimeControl "40/5400+30:900+30"]

{[%evp 20,65,23,9,14,22,14,7,20,-24,-19,-29,-36,-33,-27,-30,-2,-29,31,38,64,66,74,28,48,31,76,78,78,78,71,79,136,157,160,143,128,110,109,106,104,104,29984,29985,29996,29997,29997,29994]} 1. e4 {[%emt 0:01:34]} c5 {[%emt 0:01:57]} 2. Nf3 {[%emt 0:00:06]} e6 {[%emt 0:00:38]} 3. d4 {[%emt 0:00:04]} cxd4 {[%emt 0:00:06]} 4. Nxd4 {[%emt 0:00:04]} a6 {[%emt 0:00:24]} 5. Bd3 {[%emt 0:00:10]} Nc6 {[%emt 0:01:33]} 6. Nxc6 {[%emt 0:00:30]} bxc6 {[%emt 0:01:37]} 7. O-O {[%emt 0:00:38]} Qc7 {[%emt 0:01:53]} 8. b3 {[%emt 0:00:56]} Be7 {[%emt 0:05:33]} 9. Ba3 {[%emt 0:13:14]} d5 {[%emt 0:09:37]} 10. Bxe7 {[%emt 0:12:03]} Nxe7 {[%emt 0:00:20]} 11. Nd2 {[%emt 0:00:38]} Ng6 {[%emt 0:02:54]} 12. Re1 {[%emt 0:02:04]} O-O {[%emt 0:04:54]} 13. Nf3 {[%emt 0:10:43]} a5 {[%emt 0:15:39]} 14. e5 {[%emt 0:04:22]} c5 {[%emt 0:16:27]} 15. Qd2 {[%emt 0:21:37]} Qe7 {[%emt 0:05:27]} 16. c3 {[%emt 0:05:03]} Bb7 {[%emt 0:01:42]} 17. Rad1 {[%emt 0:12:37]} Rad8 {[%emt 0:01:17]} 18. Qc1 {[%emt 0:01:54]} f5 {[%emt 0:09:02]} (18... h6 $11) 19. exf6 $1 $14 {[%emt 0:01:16]} Qxf6 {[%emt 0:02:02]} 20. Bxg6 {[%emt 0:00:40]} Qxg6 {[%emt 0:06:23] [#]} 21. Qg5 {[%emt 0:01:09]} (21. Ne5 $1 $16 {[%cal Re5g6]} Qe8 22. Qe3) 21... Qf7 {[%emt 0:02:37]} 22. Qg3 {[%emt 0:02:35]} Qf6 {[%emt 0:01:19]} 23. Qc7 {[%emt 0:01:37]} Ba8 {[%emt 0:00:33]} 24. Qxc5 {[%emt 0:04:58]} ({Weaker is} 24. Qxa5 d4 25. Qa6 (25. Rd3 $2 e5 $19) 25... Bxf3 26. gxf3 dxc3 27. Rxd8 Rxd8 $15) 24... d4 {[%emt 0:01:18]} 25. Rxd4 {[%emt 0:01:18]} Bxf3 {[%emt 0:03:19]} ({Better is} 25... Rc8 26. Qe5 Bxf3) 26. Rxd8 $16 {[%emt 0:00:04]} ({Reject} 26. gxf3 $6 Qxf3 27. Rxd8 Qg4+ 28. Kh1 Qf3+ 29. Kg1 Qg4+ 30. Kh1 Qf3+ 31. Kg1 $11) 26... Rxd8 {[%emt 0:00:07]} 27. gxf3 {[%emt 0:00:10]} Qxf3 {[%emt 0:00:05]} 28. Qe3 {[%emt 0:00:32]} Qg4+ {[%emt 0:00:12]} 29. Kf1 {[%emt 0:01:36]} Kf7 {[%emt 0:01:38]} 30. Qg3 {[%emt 0:00:16]} Qh5 $2 {[%emt 0:01:06][%mdl 8192]} (30... Qxg3 $16 31. hxg3 Rd3) 31. Qc7+ {[%emt 0:00:19]} Kg6 {[%emt 0:01:56]} 32. Rxe6+ {[%emt 0:00:21]} Kf5 {[%emt 0:00:21]} 33. Re5+ {[%emt 0:00:11]} 1-0

[Event "RUDAR 2 IM 2022"]
[Site "Pozarevac"]
[Date "2022.04.06"]
[Round "5.3"]
[White "Andreev, Konstantin"]
[Black "Ivanovic, Marko"]
[Result "1-0"]
[ECO "C56"]
[WhiteElo "2238"]
[BlackElo "2302"]
[Annotator "TA"]
[PlyCount "97"]
[EventDate "2022.03.27"]
[EventType "tourn"]
[EventCountry "SRB"]
[SourceTitle "playchess.com"]
[Source "ChessBase"]
[SourceQuality "1"]
[TimeControl "40/5400+30:900+30"]

{[%evp 55,97,26,22,0,8,8,7,0,52,0,104,105,108,87,95,87,338,343,340,335,316,315,390,375,450,448,576,564,568,556,539,573,564,541,631,639,675,669,647,585,1162,991,1305,0]} 1. e4 {[%emt 0:00:08]} e5 {[%emt 0:11:35]} 2. Nf3 {[%emt 0:00:07]} Nc6 {[%emt 0:00:49]} 3. Bc4 {[%emt 0:00:09]} Nf6 {[%emt 0:00:08]} 4. d4 {[%emt 0:00:11]} exd4 {[%emt 0:00:21]} 5. e5 {[%emt 0:00:07]} d5 {[%emt 0:00:03]} 6. Bb5 {[%emt 0:00:08]} Ne4 {[%emt 0:00:04]} 7. Nxd4 {[%emt 0:00:06]} Bd7 {[%emt 0:00:03]} 8. Bxc6 {[%emt 0:00:21]} bxc6 {[%emt 0:00:04]} 9. O-O {[%emt 0:00:43]} Be7 {[%emt 0:00:05]} 10. f3 {[%emt 0:01:07]} Nc5 {[%emt 0:00:06]} 11. f4 {[%emt 0:00:26]} O-O {[%emt 0:00:12]} 12. Nc3 {[%emt 0:05:40]} f5 {[%emt 0:20:05]} 13. Be3 {[%emt 0:08:20]} Ne6 {[%emt 0:01:25]} 14. Nb3 {[%emt 0:05:22]} a5 {[%emt 0:02:42]} 15. Na4 {[%emt 0:06:07]} Qb8 {[%emt 0:09:45]} 16. c4 {[%emt 0:14:25]} Rd8 {[%emt 0:06:49]} 17. cxd5 {[%emt 0:00:54]} Bc8 {[%emt 0:07:27]} 18. d6 {[%emt 0:10:02]} cxd6 {[%emt 0:00:12]} 19. exd6 {[%emt 0:00:22]} Bxd6 {[%emt 0:01:59]} 20. Qf3 {[%emt 0:06:21]} Ba6 {[%emt 0:27:07]} 21. Rfd1 {[%emt 0:01:05]} Bb5 {[%emt 0:08:41]} 22. Nac5 {[%emt 0:07:13]} Nxc5 {[%emt 0:01:10]} 23. Nxc5 {[%emt 0:00:15]} Bxc5 {[%emt 0:00:28]} 24. Bxc5 {[%emt 0:00:05]} Qc7 {[%emt 0:00:37]} 25. Bd4 {[%emt 0:00:47]} Rd5 {[%emt 0:00:24]} 26. Be5 {[%emt 0:05:16]} Qa7+ {[%emt 0:00:03]} 27. Kh1 {[%emt 0:00:23]} Rad8 {[%emt 0:00:04]} 28. Rxd5 {[%emt 0:01:33]} Rxd5 {[%emt 0:00:05]} 29. Rc1 {[%emt 0:01:58]} (29. Rd1 $5 {[%cal Rd1d5]} Qe3 30. Qxe3 Rxd1+ 31. Qg1 $1 Rxg1+ 32. Kxg1 $11) 29... Qd7 {[%emt 0:00:34]} 30. h3 {[%emt 0:06:03]} Rd3 {[%emt 0:01:44]} 31. Qh5 {[%emt 0:01:07]} Rd2 {[%emt 0:00:35]} (31... Qf7 $11 32. Qxf7+ Kxf7) 32. Re1 {[%emt 0:00:41]} (32. Bc3 $14 Re2 33. a4) 32... g6 {[%emt 0:00:33]} (32... Qf7 $11 33. Qf3 a4) 33. Qg5 {[%emt 0:01:00]} Qe6 {[%emt 0:00:24]} 34. Qh6 {[%emt 0:01:04]} Qe7 {[%emt 0:00:24] [#]} 35. Kh2 $1 {[%emt 0:00:15]} Re2 $2 {[%emt 0:00:42][%mdl 8192] [#]} (35... c5 $16 {keeps fighting.}) 36. Rd1 $1 $18 {[%emt 0:00:11]} Rxe5 {[%emt 0:00:26]} 37. fxe5 {[%emt 0:00:08]} Qxe5+ {[%emt 0:00:02]} 38. Kh1 {[%emt 0:00:10]} Qe7 {[%emt 0:00:49]} 39. Qd2 {[%emt 0:01:09]} Bc4 {[%emt 0:01:14]} 40. Qd8+ {[%emt 0:00:00]} Qxd8 {[%emt 0:00:00]} 41. Rxd8+ {[%emt 0:00:44]} Kf7 {[%emt 0:00:00]} 42. b3 {[%emt 0:00:24]} Bd5 {[%emt 0:00:00]} 43. Ra8 {[%emt 0:00:42]} Ke6 {[%emt 0:01:01]} 44. Rxa5 {[%emt 0:00:09]} h5 {[%emt 0:00:09]} 45. h4 {[%emt 0:00:26]} f4 {[%emt 0:00:03]} 46. Ra8 {[%emt 0:00:30]} Kf5 {[%emt 0:00:07]} 47. Kh2 {[%emt 0:00:28]} Kg4 {[%emt 0:00:04]} 48. Rd8 {[%emt 0:00:40]} Kxh4 {[%emt 0:00:05]} 49. Rxd5 $2 {[%emt 0:00:41]} (49. Rd6 $18 g5 50. a4 Bxb3 51. a5) 1-0

[Event "RUDAR 2 IM 2022"]
[Site "Pozarevac"]
[Date "2022.04.06"]
[Round "5.4"]
[White "Anishka Vikram"]
[Black "Bryakin, Mikhail"]
[Result "0-1"]
[ECO "A41"]
[WhiteElo "2000"]
[BlackElo "2481"]
[Annotator "TA"]
[PlyCount "110"]
[EventDate "2022.03.27"]
[EventType "tourn"]
[EventCountry "SRB"]
[SourceTitle "playchess.com"]
[Source "ChessBase"]
[SourceQuality "1"]
[TimeControl "40/5400+30:900+30"]

{[%evp 56,110,-185,-175,-151,-456,-462,-464,-456,-450,-418,-400,-402,-487,-459,-693,-664,-681,-671,-744,-739,-701,-687,-697,-691,-689,-692,-691,-664,-683,-651,-683,-680,-670,-639,-645,-621,-781,-741,-824,-820,-1127,-1050,-5597,-5189,-29971,-29972,-29973,-29974,-29971,-29972,-29976,-29977,-29982,-29983,-29984,-29985]} 1. d4 {[%emt 0:00:04]} d6 {[%emt 0:00:06]} 2. c4 {[%emt 0:00:18]} e5 {[%emt 0:00:06]} 3. d5 {[%emt 0:00:25]} a5 {[%emt 0:00:06]} 4. Nc3 {[%emt 0:00:46]} Na6 {[%emt 0:00:06]} 5. e4 {[%emt 0:01:03]} g6 {[%emt 0:00:09]} 6. Nf3 {[%emt 0:00:21]} h5 {[%emt 0:02:01]} 7. Be2 {[%emt 0:02:44]} Bh6 {[%emt 0:02:10]} 8. b3 {[%emt 0:04:52]} Bxc1 {[%emt 0:02:45]} 9. Rxc1 {[%emt 0:01:13]} Bg4 {[%emt 0:01:14]} 10. a3 {[%emt 0:04:12]} h4 {[%emt 0:03:03]} 11. h3 {[%emt 0:06:53]} Bxf3 {[%emt 0:00:25]} 12. Bxf3 {[%emt 0:00:08]} f5 {[%emt 0:03:24]} 13. exf5 {[%emt 0:12:50]} gxf5 {[%emt 0:00:12]} 14. Bh5+ {[%emt 0:00:33]} Kf8 {[%emt 0:00:32]} 15. Be2 {[%emt 0:05:43]} Qg5 {[%emt 0:02:07]} 16. Qc2 {[%emt 0:02:13]} Ne7 {[%emt 0:01:03]} 17. Rg1 {[%emt 0:03:32]} Ng6 {[%emt 0:07:35]} 18. g4 {[%emt 0:10:17]} hxg3 {[%emt 0:02:54]} 19. Rxg3 {[%emt 0:00:20]} Qf6 {[%emt 0:00:10]} 20. Kd2 {[%emt 0:03:48]} Kf7 {[%emt 0:06:39]} 21. Rcg1 {[%emt 0:02:00]} Rag8 {[%emt 0:00:46]} 22. Rg5 {[%emt 0:02:04]} Ne7 {[%emt 0:00:39]} 23. Rxg8 {[%emt 0:01:48]} Rxg8 {[%emt 0:01:46]} 24. Rxg8 {[%emt 0:02:08]} Nxg8 {[%emt 0:01:12]} 25. Bh5+ {[%emt 0:01:30]} Kf8 {[%emt 0:01:07]} 26. Qd1 {[%emt 0:01:04]} Qh4 {[%emt 0:01:32]} 27. Ke1 {[%emt 0:08:35]} Nf6 {[%emt 0:00:42]} 28. Be2 {[%emt 0:00:13]} Qxh3 {[%emt 0:00:52]} 29. Qd3 {[%emt 0:01:04]} Qh1+ {[%emt 0:01:55]} 30. Kd2 $2 {[%emt 0:00:17]} (30. Bf1 $17) 30... Nc5 $19 {[%emt 0:02:28]} 31. Qb1 {[%emt 0:10:16]} Qxb1 {[%emt 0:02:40]} 32. Nxb1 {[%emt 0:00:02]} Nxb3+ {[%emt 0:00:13]} 33. Kc3 {[%emt 0:00:12]} Nc5 {[%emt 0:00:40]} 34. f3 {[%emt 0:00:59]} Kg7 {[%emt 0:00:30]} 35. Nd2 {[%emt 0:02:17]} (35. Kc2 $142 Nfd7 36. Nc3) 35... Kh6 $19 {[%emt 0:01:39]} 36. Nf1 {[%emt 0:01:31]} Kg5 {[%emt 0:00:12]} 37. Bd1 {[%emt 0:01:29]} Kf4 {[%emt 0:01:05]} 38. Kd2 {[%emt 0:00:34]} Nfd7 {[%emt 0:02:21]} 39. Ne3 {[%emt 0:01:33]} Nb6 {[%emt 0:00:40]} 40. Bc2 {[%emt 0:00:00]} Kxf3 {[%emt 0:00:00]} 41. Bxf5 {[%emt 0:02:47]} Ne4+ {[%emt 0:05:40]} 42. Kd3 {[%emt 0:01:12]} Nf2+ {[%emt 0:00:12]} 43. Kd2 {[%emt 0:00:05]} Kf4 {[%emt 0:00:26]} 44. Ke2 {[%emt 0:02:50]} Ne4 {[%emt 0:00:37]} 45. Bg6 {[%emt 0:00:40]} Nf6 {[%emt 0:01:59]} 46. Bd3 {[%emt 0:02:05]} e4 {[%emt 0:00:25]} 47. Bb1 {[%emt 0:00:31]} Ng4 {[%emt 0:00:38]} 48. Nxg4 {[%emt 0:01:58]} Kxg4 {[%emt 0:00:07]} 49. Bxe4 {[%emt 0:00:49]} Nxc4 {[%emt 0:00:11]} 50. Bd3 {[%emt 0:00:03]} Nxa3 {[%emt 0:01:00]} 51. Kd2 {[%emt 0:00:18]} b5 {[%emt 0:00:10]} 52. Kc3 {[%emt 0:00:06]} Kf4 {[%emt 0:00:15]} 53. Kb3 {[%emt 0:00:30]} Nc4 {[%emt 0:00:06]} 54. Bxc4 {[%emt 0:00:42]} bxc4+ {[%emt 0:00:08]} 55. Kxc4 {[%emt 0:00:02]} Ke5 {[%emt 0:00:10]} 0-1